fUSD/lending_fUSD_20250823
["ID","MTS","AMOUNT","RATE_DAILY","PERIOD"]
[381052731,1755977432171,-666.0,0.00011999,2]
[381052732,1755977432184,-20989.25073708,0.00012,2]
[381052733,1755977432201,-22815.64340988,0.00012,2]
[381052736,1755977432217,-2206.46732967,0.00012,2]
[381052740,1755977432248,-299.86456796,0.00012,2]
[381052743,1755977432263,-2562.71568564,0.00012,2]
[381052748,1755977432306,-753.98585701,0.00012,2]
[381052750,1755977432322,-4174.68435548,0.00012,2]
[381052752,1755977432338,-4928.48153577,0.00012,2]
[381052754,1755977432374,-91239.15801682,0.00012,2]
[381052755,1755977432390,-1270.26546,0.00012,2]
[381052756,1755977432427,-2334.05525665,0.00012,2]
[381052757,1755977432443,-693.1571524,0.00012,2]
[381052779,1755977438315,-427.06784766,0.00011949,2]
[381052781,1755977438324,-203.61863769,0.0001199,2]
[381052783,1755977438332,-2176.62806492,0.00012,2]
[381052787,1755977438356,-1135.6345,0.00012,2]
[381052791,1755977438386,-406326.15253562,0.00012,2]
[381052793,1755977438395,-2668790.47713073,0.00012,2]
[381052795,1755977438404,-4111.01,0.00012,2]
[381052797,1755977438413,-110815.0,0.00012,2]
[381052799,1755977438422,-151.0,0.00012,2]
[381052801,1755977438432,-2172355.14193126,0.00012,2]
[381052803,1755977438443,-27795.62011785,0.00012,2]
[381052806,1755977438466,-111800.16984506,0.00012,2]
[381052942,1755977439794,-1479.85,0.00012,2]
[381052949,1755977439850,-767.78443484,0.00012,2]
[381052951,1755977439863,-2301846.91532004,0.00012,2]
[381052953,1755977439872,-302.0,0.00012,2]
[381052955,1755977439882,-152.99917311,0.00012421,2]
[381052958,1755977439891,-1000.0,0.00012521,2]
[381052960,1755977439901,-1000.0,0.00012521,2]
[381052962,1755977439910,-255.0,0.00012995,2]
[381052964,1755977439922,-300.0,0.00012999,2]
[381052966,1755977439932,-666.0,0.00012999,2]
[381052968,1755977439941,-390.14219478,0.00013,2]
[381052970,1755977439950,-156555.27486023,0.00013,2]
[381052972,1755977439959,-4343.9577659,0.00013,2]
[381052974,1755977439968,-420.0,0.00013064,2]
[381052975,1755977439977,-1000.0,0.00013068,2]
[381052977,1755977439987,-1000.0,0.00013068,2]
[381052979,1755977439996,-1680.0,0.00013089,2]
[381052981,1755977440005,-150.0,0.0001309,2]
[381052983,1755977440014,-300.0,0.0001309,2]
[381052985,1755977440023,-500.0,0.0001309,2]
[381052987,1755977440032,-250.0,0.0001309,2]
[381052989,1755977440042,-203.0,0.0001309,2]
[381052991,1755977440051,-2500.0,0.0001309,2]
[381052993,1755977440060,-2000.0,0.0001309,3]
[381052995,1755977440070,-310.0,0.0001309,2]
[381052997,1755977440079,-250.0,0.0001309,2]
[381052999,1755977440089,-310.0,0.0001309,2]
[381053001,1755977440098,-340.24092854,0.00013301,2]
[381053004,1755977440108,-384.50534408,0.0001361,2]
[381053005,1755977440118,-1000.0,0.00013699,2]
[381053008,1755977440127,-398.87,0.00013699,2]
[381053010,1755977440138,-200.0,0.00013699,2]
[381053012,1755977440147,-500.0,0.00013699,2]
[381053014,1755977440156,-500.0,0.00013699,2]
[381053016,1755977440167,-276.17418804,0.00013699,2]
[381053019,1755977440176,-646.05499372,0.00013699,2]
[381053021,1755977440186,-500.0,0.00013699,2]
[381053023,1755977440195,-500.0,0.00013699,2]
[381053025,1755977440204,-500.0,0.00013699,2]
[381053027,1755977440214,-500.0,0.00013699,2]
[381053030,1755977440223,-500.0,0.00013699,2]
[381053032,1755977440232,-500.0,0.00013699,2]
[381053034,1755977440242,-11517.90967077,0.000139,2]
[381053036,1755977440251,-713.0,0.00013997,2]
[381053038,1755977440260,-305.85,0.00013999,2]
[381053040,1755977440269,-423.26,0.00014,2]
[381053042,1755977440277,-424.51,0.00014,2]
[381053044,1755977440286,-14031.55537864,0.00014,3]
[381053046,1755977440295,-250.18490232,0.00014,7]
[381053048,1755977440304,-34611.15733583,0.00014071,2]
[381053050,1755977440313,-433.0,0.00014163,2]
[381053052,1755977440322,-419.03,0.00014244,2]
[381053054,1755977440331,-152.1,0.00014244,2]
[381053056,1755977440339,-1000.0,0.00014247,2]
[381053058,1755977440348,-1000.0,0.00014247,2]
[381053060,1755977440358,-1000.0,0.00014247,2]
[381053062,1755977440367,-1000.0,0.00014247,2]
[381053064,1755977440376,-1000.0,0.00014247,2]
[381053066,1755977440385,-1000.0,0.00014247,2]
[381053067,1755977440395,-1104.64875901,0.00014247,2]
[381053068,1755977440403,-587.0,0.00014343,2]
[381053069,1755977440416,-1831.0,0.00014398,2]
[381053070,1755977440425,-265.11072785,0.00014554,2]
[381053071,1755977440434,-420.0,0.00014686,2]
[381053072,1755977440444,-1523.0,0.000147,2]
[381053073,1755977440453,-340.24092854,0.00014702,2]
[381053074,1755977440462,-752.6525107,0.00014795,2]
[381053075,1755977440471,-1500.0,0.00014795,2]
[381053076,1755977440480,-1500.0,0.00014795,2]
[381053077,1755977440490,-38100.59304266,0.00015,2]
[381053078,1755977440499,-1517.64,0.000153,2]
[381053079,1755977440508,-384.50534408,0.0001532,2]
[381053080,1755977440517,-245.28691715,0.00015342,2]
[381053081,1755977440526,-807.87174233,0.00015342,2]
[381053082,1755977440535,-214.0,0.00015373,2]
[381053083,1755977440544,-16370.31930325,0.000154,2]
[381053084,1755977440553,-497.86348787,0.000154,2]
[381053085,1755977440562,-1125.0,0.00015636,2]
[381053086,1755977440571,-1284.0,0.00015714,2]
[381053087,1755977440580,-823.0,0.00015747,2]
[381053088,1755977440589,-151.0,0.0001588,2]
[381053089,1755977440598,-151.0,0.00015919,2]
[381053090,1755977440607,-151.0,0.0001595,2]
[381053091,1755977440616,-151.0,0.00015992,2]
[381053092,1755977440626,-2433.41713233,0.00016,2]
[381053093,1755977440635,-554.04627419,0.00016,2]
[381053094,1755977440644,-212.10093811,0.00016,3]
[381053095,1755977440653,-458.60200496,0.00016,3]
[381053096,1755977440662,-199.0,0.0001615,2]
[381053097,1755977440671,-2991.92785472,0.0001616,2]
[381053098,1755977440681,-200.0,0.0001634,2]
[381053099,1755977440690,-2000.0,0.00016438,2]
[381053100,1755977440699,-164.10560054,0.00016573,2]
[381053101,1755977440708,-500.0,0.00016573,2]
[381053102,1755977440717,-500.0,0.00016573,2]
[381053103,1755977440726,-500.0,0.00016573,2]
[381053104,1755977440735,-500.0,0.00016573,2]
[381053105,1755977440744,-522.15161724,0.00016573,2]
[381053106,1755977440753,-500.0,0.00016573,2]
[381053107,1755977440762,-500.0,0.00016573,2]
[381053108,1755977440771,-150.0,0.00016583,2]
[381053109,1755977440780,-795.22982767,0.00016584,2]
[381053110,1755977440789,-1013.52821174,0.00016585,2]
[381053111,1755977440798,-1231.8265958,0.00016586,2]
[381053112,1755977440807,-1450.12497987,0.00016586,2]
[381053113,1755977440817,-1668.42336393,0.00016587,2]
[381053114,1755977440826,-1886.721748,0.00016588,2]
[381053115,1755977440835,-2105.02013207,0.00016589,2]
[381053116,1755977440844,-2323.31851613,0.00016589,2]
[381053117,1755977440854,-2541.6169002,0.0001659,2]
[381053118,1755977440863,-300.0,0.00016599,2]
[381053119,1755977440872,-300.0,0.00016599,2]
[381053121,1755977440881,-264781.0387698,0.000166,3]
[381053122,1755977440892,-352.86478907,0.000166,2]
[381053123,1755977440902,-458.60200496,0.000166,3]
[381053124,1755977440912,-212.10093811,0.000166,3]
[381053125,1755977440921,-456.60604795,0.00016853,2]
[381053126,1755977440931,-300.0,0.00016999,2]
[381053127,1755977440940,-300.0,0.00016999,2]
[381053128,1755977440949,-51415.75756611,0.00017,2]
[381053129,1755977440959,-50397.67274759,0.00017,2]
[381053130,1755977440969,-151.0,0.00017,2]
[381053131,1755977440978,-151.0,0.00017,2]
[381053132,1755977440988,-151.0,0.00017,2]
[381053133,1755977440998,-151.0,0.00017,2]
[381053134,1755977441009,-151.0,0.00017,2]
[381053135,1755977441018,-151.0,0.00017,2]
[381053136,1755977441027,-151.0,0.00017,2]
[381053137,1755977441036,-7723.87228,0.00017,2]
[381053138,1755977441046,-160.655652,0.00017,2]
[381053139,1755977441054,-151.0,0.00017,2]
[381053140,1755977441064,-151.0,0.00017,2]
[381053141,1755977441073,-7723.87228,0.00017,2]
[381053142,1755977441083,-160.655652,0.00017,2]
[381053143,1755977441091,-160.655652,0.00017,2]
[381053144,1755977441101,-7723.87228,0.00017,2]
[381053145,1755977441110,-151.0,0.00017,2]
[381053146,1755977441119,-160.655652,0.00017,2]
[381053147,1755977441128,-7723.87228,0.00017,2]
[381053148,1755977441138,-151.0,0.00017,2]
[381053149,1755977441147,-151.0,0.00017,2]
[381053150,1755977441157,-151.0,0.00017,2]
[381053151,1755977441168,-384.50534408,0.0001703,2]
[381053152,1755977441179,-1000.0,0.00017121,2]
[381053153,1755977441188,-1000.0,0.00017121,2]
[381053154,1755977441198,-591.80942283,0.00017121,2]
[381053155,1755977441207,-1000.0,0.00017121,2]
[381053156,1755977441218,-1000.0,0.00017121,2]
[381053157,1755977441227,-1000.0,0.00017121,2]
[381053158,1755977441236,-1152.0,0.00017288,2]
[381053159,1755977441247,-500.0,0.0001738,2]
[381053160,1755977441256,-500.0,0.0001738,2]
[381053161,1755977441265,-500.0,0.0001738,2]
[381053162,1755977441274,-500.0,0.0001738,2]
[381053163,1755977441283,-500.0,0.0001738,2]
[381053164,1755977441293,-220.35005823,0.00017483,2]
[381053165,1755977441302,-20000.0,0.000175,2]
[381053166,1755977441311,-529.189078,0.000175,2]
[381053167,1755977441320,-302.919084,0.000175,2]
[381053168,1755977441329,-529.189078,0.000175,2]
[381053169,1755977441339,-151.0,0.000175,2]
[381053170,1755977441349,-529.189078,0.000175,2]
[381053171,1755977441358,-302.919084,0.000175,2]
[381053172,1755977441367,-302.919084,0.000175,2]
[381053173,1755977441377,-529.189078,0.000175,2]
[381053174,1755977441386,-562.846689,0.000175,2]
[381053175,1755977441395,-302.919084,0.000175,2]
[381053176,1755977441404,-195.54452,0.000175,2]
[381053177,1755977441413,-562.846689,0.000175,2]
[381053178,1755977441422,-195.54452,0.000175,2]
[381053179,1755977441432,-562.846689,0.000175,2]
[381053180,1755977441441,-195.54452,0.000175,2]
[381053181,1755977441451,-562.846689,0.000175,2]
[381053182,1755977441460,-2386.158892,0.000175,2]
[381053183,1755977441470,-195.54452,0.000175,2]
[381053184,1755977441479,-2386.158892,0.000175,2]
[381053185,1755977441489,-192.726673,0.000175,2]
[381053186,1755977441498,-2386.158892,0.000175,2]
[381053187,1755977441507,-2386.158892,0.000175,2]
[381053188,1755977441516,-192.726673,0.000175,2]
[381053189,1755977441526,-151.0,0.000175,2]
[381053190,1755977441535,-350.510081,0.000175,2]
[381053191,1755977441544,-1243.236422,0.000175,2]
[381053192,1755977441554,-192.726673,0.000175,2]
[381053193,1755977441563,-350.510081,0.000175,2]
[381053194,1755977441572,-151.0,0.000175,2]
[381053195,1755977441582,-1243.236422,0.000175,2]
[381053196,1755977441591,-192.726673,0.000175,2]
[381053197,1755977441600,-350.510081,0.000175,2]
[381053198,1755977441609,-1243.236422,0.000175,2]
[381053199,1755977441618,-1243.236422,0.000175,2]
[381053200,1755977441628,-350.510081,0.000175,2]
[381053201,1755977441637,-151.0,0.000175,2]
[381053202,1755977441647,-151.0,0.000175,2]
[381053203,1755977441656,-151.0,0.000175,2]
[381053204,1755977441666,-151.0,0.000175,2]
[381053205,1755977441675,-231.937051,0.000175,2]
[381053207,1755977441685,-151.0,0.000175,2]
[381053208,1755977441696,-231.937051,0.000175,2]
[381053210,1755977441705,-151.0,0.000175,2]
[381053212,1755977441714,-151.0,0.000175,2]
[381053214,1755977441724,-211.443587,0.000175,2]
[381053216,1755977441733,-231.937051,0.000175,2]
[381053218,1755977441743,-231.937051,0.000175,2]
[381053220,1755977441752,-850.86945684,0.00017668,2]
[381053222,1755977441762,-1500.0,0.00017668,2]
[381053224,1755977441771,-1500.0,0.00017668,2]
[381053226,1755977441780,-1500.0,0.00017668,2]
[381053227,1755977441790,-1500.0,0.00017668,2]
[381053228,1755977441800,-19050.27,0.000177,2]
[381053229,1755977441809,-2005.8657454,0.000178,2]
[381053230,1755977441819,-500.0,0.00017808,2]
[381053231,1755977441828,-500.0,0.00017856,2]
[381053232,1755977441838,-500.0,0.00017904,2]
[381053233,1755977441847,-1000.0,0.00017928,2]
[381053234,1755977441856,-715.83437767,0.00017928,2]
[381053235,1755977441865,-1000.0,0.00017928,2]
[381053236,1755977441875,-1000.0,0.00017928,2]
[381053237,1755977441884,-470.81403864,0.00017928,2]
[381053238,1755977441894,-500.0,0.00017952,2]
[381053239,1755977441903,-300.0,0.00017999,2]
[381053240,1755977441914,-300.0,0.00017999,2]
[381053241,1755977441923,-778828.14034017,0.00018,2]
[381053242,1755977441933,-18300.29587842,0.00018,2]
[381053243,1755977441943,-151.0,0.00018,2]
[381053244,1755977441952,-151.0,0.00018,2]
[381053245,1755977441961,-691.382812,0.00018,2]
[381053246,1755977441970,-691.382812,0.00018,2]
[381053247,1755977441979,-151.0,0.00018,2]
[381053248,1755977441988,-151.0,0.00018,2]
[381053249,1755977441997,-151.0,0.00018,2]
[381053250,1755977442007,-691.382812,0.00018,2]
[381053251,1755977442016,-151.0,0.00018,2]
[381053252,1755977442026,-151.0,0.00018,2]
[381053253,1755977442035,-151.0,0.00018,2]
[381053254,1755977442044,-691.382812,0.00018,2]
[381053255,1755977442053,-151.0,0.00018,2]
[381053256,1755977442063,-358.436102,0.00018,2]
[381053257,1755977442072,-712.561151,0.00018,2]
[381053258,1755977442081,-712.561151,0.00018,2]
[381053259,1755977442091,-358.436102,0.00018,2]
[381053260,1755977442102,-358.436102,0.00018,2]
[381053261,1755977442113,-712.561151,0.00018,2]
[381053262,1755977442122,-203.382724,0.00018,2]
[381053263,1755977442132,-151.0,0.00018,2]
[381053264,1755977442141,-712.561151,0.00018,2]
[381053265,1755977442150,-358.436102,0.00018,2]
[381053266,1755977442159,-203.382724,0.00018,2]
[381053267,1755977442170,-390.174497,0.00018,2]
[381053268,1755977442179,-193.618572,0.00018,2]
[381053269,1755977442188,-390.174497,0.00018,2]
[381053270,1755977442197,-193.618572,0.00018,2]
[381053271,1755977442207,-203.382724,0.00018,2]
[381053272,1755977442216,-506.86161,0.00018,2]
[381053273,1755977442225,-390.174497,0.00018,2]
[381053274,1755977442234,-1195.780759,0.00018,2]
[381053275,1755977442243,-151.0,0.00018,2]
[381053276,1755977442253,-506.86161,0.00018,2]
[381053277,1755977442265,-193.618572,0.00018,2]
[381053278,1755977442274,-203.382724,0.00018,2]
[381053279,1755977442282,-1195.780759,0.00018,2]
[381053280,1755977442292,-390.174497,0.00018,2]
[381053281,1755977442301,-193.618572,0.00018,2]
[381053282,1755977442310,-506.86161,0.00018,2]
[381053283,1755977442319,-1195.780759,0.00018,2]
[381053284,1755977442329,-506.86161,0.00018,2]
[381053285,1755977442339,-1195.780759,0.00018,2]
[381053286,1755977442349,-151.0,0.00018,2]
[381053287,1755977442358,-151.0,0.00018,2]
[381053288,1755977442368,-151.054298,0.00018,2]
[381053289,1755977442377,-230.709962,0.00018,2]
[381053290,1755977442389,-230.709962,0.00018,2]
[381053291,1755977442399,-230.709962,0.00018,2]
[381053292,1755977442408,-3370.110415,0.00018,2]
[381053293,1755977442417,-230.709962,0.00018,2]
[381053294,1755977442427,-3370.110415,0.00018,2]
[381053295,1755977442436,-3370.110415,0.00018,2]
[381053296,1755977442445,-151.0,0.00018,2]
[381053297,1755977442455,-3370.110415,0.00018,2]
[381053298,1755977442464,-161.6576,0.00018,2]
[381053299,1755977442473,-2047.175123,0.00018,2]
[381053300,1755977442483,-2676.328817,0.00018,2]
[381053301,1755977442492,-151.0,0.00018,2]
[381053302,1755977442501,-2047.175123,0.00018,2]
[381053303,1755977442510,-2676.328817,0.00018,2]
[381053304,1755977442519,-2047.175123,0.00018,2]
[381053305,1755977442528,-2676.328817,0.00018,2]
[381053306,1755977442537,-151.0,0.00018,2]
[381053307,1755977442547,-2047.175123,0.00018,2]
[381053308,1755977442556,-151.0,0.00018,2]
[381053309,1755977442565,-202.023752,0.00018,2]
[381053310,1755977442575,-529.189078,0.00018,2]
[381053311,1755977442584,-302.919084,0.00018,2]
[381053312,1755977442594,-529.189078,0.00018,2]
[381053313,1755977442603,-151.0,0.00018,2]
[381053314,1755977442612,-2676.328817,0.00018,2]
[381053315,1755977442621,-151.0,0.00018,2]
[381053316,1755977442631,-302.919084,0.00018,2]
[381053317,1755977442640,-529.189078,0.00018,2]
[381053318,1755977442649,-151.0,0.00018,2]
[381053319,1755977442659,-302.919084,0.00018,2]
[381053320,1755977442669,-529.189078,0.00018,2]
[381053321,1755977442678,-151.0,0.00018,2]
[381053323,1755977442688,-562.846689,0.00018,2]
[381053324,1755977442698,-302.919084,0.00018,2]
[381053325,1755977442708,-195.54452,0.00018,2]
[381053326,1755977442718,-562.846689,0.00018,2]
[381053327,1755977442728,-195.54452,0.00018,2]
[381053328,1755977442737,-562.846689,0.00018,2]
[381053329,1755977442747,-195.54452,0.00018,2]
[381053330,1755977442756,-562.846689,0.00018,2]
[381053331,1755977442765,-2386.158892,0.00018,2]
[381053332,1755977442774,-195.54452,0.00018,2]
[381053333,1755977442783,-2386.158892,0.00018,2]
[381053334,1755977442792,-192.726673,0.00018,2]
[381053335,1755977442801,-2386.158892,0.00018,2]
[381053336,1755977442811,-2386.158892,0.00018,2]
[381053337,1755977442819,-192.726673,0.00018,2]
[381053338,1755977442829,-350.510081,0.00018,2]
[381053339,1755977442838,-151.177846,0.00018,2]
[381053340,1755977442847,-1243.236422,0.00018,2]
[381053341,1755977442857,-192.726673,0.00018,2]
[381053342,1755977442866,-350.510081,0.00018,2]
[381053343,1755977442875,-151.0,0.00018,2]
[381053344,1755977442884,-1243.236422,0.00018,2]
[381053345,1755977442893,-192.726673,0.00018,2]
[381053346,1755977442904,-350.510081,0.00018,2]
[381053347,1755977442913,-1243.236422,0.00018,2]
[381053348,1755977442922,-1243.236422,0.00018,2]
[381053349,1755977442932,-350.510081,0.00018,2]
[381053350,1755977442941,-151.0,0.00018,2]
[381053351,1755977442950,-151.0,0.00018,2]
[381053352,1755977442959,-151.0,0.00018,2]
[381053353,1755977442968,-151.0,0.00018,2]
[381053354,1755977442978,-231.937051,0.00018,2]
[381053355,1755977442987,-151.0,0.00018,2]
[381053356,1755977442996,-231.937051,0.00018,2]
[381053357,1755977443006,-151.0,0.00018,2]
[381053358,1755977443014,-151.0,0.00018,2]
[381053359,1755977443024,-231.937051,0.00018,2]
[381053360,1755977443034,-231.937051,0.00018,2]
[381053361,1755977443043,-151.0,0.00018,2]
[381053362,1755977443052,-151.0,0.00018,2]
[381053363,1755977443062,-151.0,0.00018,2]
[381053364,1755977443071,-151.0,0.00018,2]
[381053365,1755977443080,-151.0,0.00018,2]
[381053366,1755977443089,-151.0,0.00018,2]
[381053367,1755977443098,-151.0,0.00018,2]
[381053368,1755977443107,-151.0,0.00018,2]
[381053369,1755977443117,-151.0,0.00018,2]
[381053370,1755977443125,-7723.87228,0.00018,2]
[381053371,1755977443135,-160.655652,0.00018,2]
[381053372,1755977443144,-151.0,0.00018,2]
[381053373,1755977443153,-7723.87228,0.00018,2]
[381053374,1755977443166,-189.745296,0.00018,2]
[381053375,1755977443179,-160.655652,0.00018,2]
[381053376,1755977443189,-160.655652,0.00018,2]
[381053377,1755977443199,-7723.87228,0.00018,2]
[381053378,1755977443209,-160.655652,0.00018,2]
[381053379,1755977443219,-7723.87228,0.00018,2]
[381053380,1755977443230,-151.0,0.00018,2]
[381053381,1755977443240,-151.0,0.00018,2]
[381053382,1755977443251,-206.678041,0.00018,2]
[381053383,1755977443261,-500.0,0.00018,2]
[381053384,1755977443271,-500.0,0.00018049,2]
[381053385,1755977443282,-500.0,0.00018097,2]
[381053386,1755977443291,-500.0,0.00018145,2]
[381053387,1755977443301,-500.0,0.00018193,2]
[381053388,1755977443311,-718.03944372,0.00018216,2]
[381053389,1755977443320,-1410.64582533,0.00018216,2]
[381053390,1755977443331,-2000.0,0.00018216,2]
[381053391,1755977443341,-1157.29183092,0.00018216,2]
[381053393,1755977443351,-500.0,0.00018241,2]
[381053409,1755977443621,-500.0,0.00018289,2]
[381053412,1755977443665,-500.0,0.00018337,2]
[381053413,1755977443676,-160.0,0.00018352,2]
[381053414,1755977443686,-212.10093811,0.00018352,2]
[381053415,1755977443695,-458.60200496,0.00018352,2]
[381053416,1755977443706,-844.27675029,0.00018352,2]
[381053417,1755977443715,-500.0,0.00018385,2]
[381053418,1755977443725,-500.0,0.00018433,2]
[381053419,1755977443735,-1500.0,0.00018476,2]
[381053420,1755977443746,-650.20043628,0.00018476,2]
[381053421,1755977443761,-1500.0,0.00018476,2]
[381053422,1755977443771,-500.0,0.00018481,2]
[381053423,1755977443780,-500.0,0.00018489,2]
[381053424,1755977443790,-151.0,0.00018489,2]
[381053425,1755977443799,-600.0,0.00018489,2]
[381053426,1755977443809,-600.0,0.00018489,2]
[381053427,1755977443818,-600.0,0.00018489,2]
[381053428,1755977443828,-600.0,0.00018489,2]
[381053429,1755977443837,-600.0,0.00018489,2]
[381053430,1755977443847,-600.0,0.00018489,2]
[381053431,1755977443856,-600.0,0.00018489,2]
[381053432,1755977443866,-600.0,0.00018489,2]
[381053433,1755977443875,-600.0,0.00018489,2]
[381053434,1755977443886,-600.0,0.00018489,2]
[381053435,1755977443896,-200.0,0.00018489,2]
[381053436,1755977443907,-600.0,0.00018489,2]
[381053437,1755977443926,-500.0,0.00018489,2]
[381053438,1755977443938,-600.0,0.00018489,2]
[381053439,1755977443947,-150.0,0.00018493,2]
[381053440,1755977443957,-8343.13,0.000185,2]
[381053441,1755977443967,-1449.08,0.000185,2]
[381053442,1755977443976,-500.0,0.00018529,2]
[381053443,1755977443985,-500.0,0.00018544,2]
[381053444,1755977443995,-150.0,0.00018544,2]
[381053445,1755977444004,-150.0,0.00018544,2]
[381053446,1755977444014,-300.0,0.00018544,2]
[381053447,1755977444023,-150.0,0.00018544,2]
[381053448,1755977444033,-150.0,0.00018544,2]
[381053449,1755977444042,-500.0,0.00018544,2]
[381053450,1755977444052,-150.0,0.00018544,2]
[381053451,1755977444062,-150.0,0.00018544,2]
[381053452,1755977444072,-500.0,0.00018544,2]
[381053453,1755977444082,-500.0,0.00018577,2]
[381053454,1755977444092,-500.0,0.00018599,2]
[381053455,1755977444102,-300.0,0.00018599,2]
[381053456,1755977444112,-300.0,0.00018599,2]
[381053457,1755977444122,-4111.01,0.000186,2]
[381053458,1755977444132,-110815.0,0.000186,2]
[381053459,1755977444142,-500.0,0.00018625,2]
[381053460,1755977444151,-500.0,0.00018654,2]
[381053461,1755977444161,-500.0,0.00018673,2]
[381053462,1755977444170,-500.0,0.00018709,2]
[381053463,1755977444179,-500.0,0.00018721,2]
[381053464,1755977444189,-384.50534408,0.0001874,2]
[381053465,1755977444198,-500.0,0.00018764,2]
[381053466,1755977444208,-2500.0,0.00018764,2]
[381053467,1755977444217,-500.0,0.0001877,2]
[381053468,1755977444226,-152.46,0.000188,2]
[381053469,1755977444236,-152.46,0.000188,2]
[381053470,1755977444246,-152.46,0.000188,2]
[381053471,1755977444255,-152.46,0.000188,2]
[381053472,1755977444265,-152.46,0.000188,2]
[381053473,1755977444274,-152.46,0.000188,2]
[381053474,1755977444284,-152.46,0.000188,2]
[381053475,1755977444294,-500.0,0.00018818,2]
[381053476,1755977444303,-150.0,0.00018818,2]
[381053477,1755977444313,-300.0,0.00018818,2]
[381053478,1755977444323,-150.0,0.00018818,2]
[381053479,1755977444332,-500.0,0.00018818,2]
[381053480,1755977444342,-500.0,0.00018818,2]
[381053481,1755977444351,-500.0,0.00018819,2]
[381053482,1755977444361,-500.0,0.00018866,2]
[381053483,1755977444371,-500.0,0.00018874,2]
[381053484,1755977444381,-8343.13,0.000189,2]
[381053485,1755977444390,-1449.08,0.000189,2]
[381053486,1755977444401,-500.0,0.00018914,2]
[381053487,1755977444410,-500.0,0.00018962,2]
[381053488,1755977444419,-1030.0,0.0001898,2]
[381053489,1755977444429,-14518.8376434,0.00019,2]
[381053490,1755977444439,-2000.0,0.00019,2]
[381053491,1755977444448,-2000.0,0.00019,2]
[381053492,1755977444458,-2000.0,0.00019,2]
[381053493,1755977444467,-500.0,0.0001901,2]
[381053494,1755977444477,-666.72841973,0.00019024,2]
[381053495,1755977444486,-1500.0,0.00019024,2]
[381053496,1755977444495,-151.0,0.00019037,2]
[381053497,1755977444505,-500.0,0.00019058,2]
[381053498,1755977444515,-150.0,0.00019092,2]
[381053499,1755977444524,-300.0,0.00019092,2]
[381053500,1755977444534,-150.0,0.00019092,2]
[381053501,1755977444543,-150.0,0.00019092,2]
[381053502,1755977444552,-500.0,0.00019092,2]
[381053503,1755977444562,-500.0,0.00019106,2]
[381053504,1755977444571,-500.0,0.00019154,2]
[381053505,1755977444581,-500.0,0.00019202,2]
[381053506,1755977444591,-500.0,0.0001925,2]
[381053507,1755977444600,-500.0,0.00019298,2]
[381053508,1755977444610,-2500.0,0.00019312,2]
[381053509,1755977444620,-500.0,0.00019346,2]
[381053510,1755977444629,-150.0,0.00019366,2]
[381053511,1755977444639,-300.0,0.00019366,2]
[381053512,1755977444649,-150.0,0.00019366,2]